bitfinex/quotes_SOLUSD_20240808
["timestamp","ask_amount","ask_price","bid_price","bid_amount"]
[1723118205296,1.61938887,154.44,154.35,28.21]
[1723118206210,1.61938887,154.44,154.36,20.0]
[1723118206723,30.94,154.45,154.36,20.0]
[1723118207306,30.94,154.45,154.36,40.0]
[1723118207618,30.94,154.45,154.37,28.21]
[1723118207831,30.94,154.45,154.38,20.0]
[1723118210224,30.94,154.45,154.37,1.8602238]
[1723118211512,1.61929385,154.44,154.37,1.8602238]
[1723118212022,46.61929385,154.44,154.37,1.8602238]
[1723118213196,12.1721,154.43,154.37,1.8602238]
[1723118213413,1.61947999,154.42,154.37,1.8602238]
[1723118214033,12.1721,154.43,154.37,1.8602238]
[1723118217914,1.6193915,154.42,154.37,1.8602238]
[1723118218318,12.1721,154.43,154.37,1.8602238]
[1723118224220,12.1721,154.43,154.37,50.0702238]
[1723118224523,12.1721,154.43,154.38,20.34]
[1723118225409,30.94,154.45,154.38,20.34]
[1723118228214,12.1132,154.47,154.41,28.21]
[1723118228412,31.3345,154.49,154.42,40.34]
[1723118228741,31.3345,154.49,154.43,73.21]
[1723118228926,31.3345,154.49,154.44,20.0]
[1723118230012,31.3345,154.49,154.37,30.0702238]
[1723118230013,59.5445,154.49,154.37,30.0702238]
[1723118230216,46.95910589,154.48,154.37,30.0702238]
[1723118230533,12.1469,154.46,154.37,30.0702238]
[1723118231430,31.0266,154.45,154.37,30.0702238]
[1723118231648,31.0266,154.45,154.38,20.0]
[1723118231820,1.61912557,154.44,154.37,1.8602238]
[1723118232148,60.85587438,154.45,154.37,1.8602238]
[1723118232312,59.2366,154.45,154.37,1.8602238]
[1723118232816,60.85593916,154.45,154.37,1.8602238]
[1723118233016,59.2366,154.45,154.37,1.8602238]
[1723118233242,45.0,154.44,154.37,1.8602238]
[1723118233732,59.2366,154.45,154.37,1.8602238]
[1723118233934,31.0266,154.45,154.37,1.8602238]
[1723118234641,32.64590759,154.45,154.37,1.8602238]
[1723118234942,45.0,154.44,154.37,1.8602238]
[1723118235115,45.0,154.44,154.34,20.0]
[1723118236913,59.2366,154.45,154.34,40.0]
[1723118237425,59.2366,154.45,154.34,20.0]
[1723118237426,28.21,154.43,154.34,20.0]
[1723118237640,45.34,154.42,154.33,20.0]
[1723118237940,45.17,154.42,154.33,20.0]
[1723118238149,31.0266,154.45,154.36,20.0]
[1723118238317,31.0266,154.45,154.39,28.21]
[1723118238527,30.5033,154.49,154.4,41.46501624]
[1723118238725,30.5033,154.49,154.41,45.17]
[1723118238943,30.5033,154.49,154.42,20.0]
[1723118239834,58.7133,154.49,154.4,20.0]
[1723118240143,58.7133,154.49,154.38,20.0]
[1723118240442,58.7133,154.49,154.37,48.21]
[1723118240443,46.95919319,154.48,154.37,20.0]
[1723118241140,28.21,154.47,154.37,20.0]
[1723118241729,45.34,154.48,154.38,20.0]
[1723118242038,30.5033,154.49,154.39,28.21]
[1723118242342,30.5033,154.49,154.4,20.0]
[1723118246451,1.7889102,154.48,154.4,20.0]
[1723118246643,0.17,154.47,154.38,20.0]
[1723118248235,0.17,154.48,154.38,20.0]
[1723118248429,58.7133,154.49,154.38,20.0]
[1723118250854,58.7133,154.49,154.39,0.17]
[1723118251438,30.5033,154.49,154.39,49.46712567]
[1723118251643,30.5033,154.49,154.43,28.21]
[1723118251937,30.5033,154.49,154.44,20.0]
[1723118252127,30.5033,154.49,154.4,45.0]
[1723118252330,30.5033,154.49,154.41,20.0]
[1723118252942,30.5033,154.49,154.4,20.0]
[1723118254953,0.17,154.48,154.4,20.0]
[1723118255143,75.16908858,154.48,154.37,28.21]
[1723118256455,75.16908858,154.48,154.38,20.0]
[1723118256854,75.16908858,154.48,154.37,20.0]
[1723118257261,28.21,154.46,154.37,20.0]
[1723118257459,28.21,154.44,154.33,10.14576143]
[1723118257644,0.34,154.43,154.33,10.14576143]
[1723118257844,45.34,154.43,154.33,10.14576143]
[1723118258239,46.95956122,154.43,154.33,10.14576143]
[1723118258445,1.61962229,154.42,154.31,50.0709471]
[1723118258656,29.82962229,154.42,154.31,12.01011071]
[1723118258860,32.7069,154.4,154.31,32.01011071]
[1723118259349,32.7069,154.4,154.31,58.35916361]
[1723118260250,32.7069,154.4,154.32,20.0]
[1723118262467,34.32654131,154.4,154.32,20.0]
[1723118263046,32.7069,154.4,154.32,20.0]
[1723118263556,34.32653713,154.4,154.32,20.0]
[1723118263946,32.7069,154.4,154.32,20.0]
[1723118264150,32.7069,154.4,154.33,48.21]
[1723118264347,32.7069,154.4,154.34,20.0]
[1723118265647,32.7069,154.4,154.32,20.0]
[1723118267070,1.61966012,154.39,154.32,20.0]
[1723118267769,32.7069,154.4,154.32,20.0]
[1723118270257,12.239,154.39,154.31,12.00879757]
[1723118270945,12.239,154.39,154.31,40.21879757]
[1723118271353,12.239,154.39,154.31,61.51429444]
[1723118272054,12.239,154.39,154.32,20.0]
[1723118273140,12.239,154.39,154.33,29.50571203]
[1723118273353,12.239,154.39,154.34,20.0]
[1723118281779,12.57,154.43,154.37,28.21]
[1723118281994,12.57,154.43,154.38,21.46513562]
[1723118282168,30.8156,154.44,154.39,28.21]
[1723118282362,30.8156,154.44,154.4,20.0]
[1723118283253,30.8156,154.44,154.38,20.0]
[1723118283450,30.8156,154.44,154.35,28.21]
[1723118283451,30.8156,154.44,154.36,20.0]
[1723118283655,60.00671392,154.43,154.32,6.75087495]
[1723118283953,60.00671392,154.43,154.31,60.21879757]
[1723118284549,58.3873,154.43,154.31,60.21879757]
[1723118284976,58.3873,154.43,154.32,20.0]
[1723118285486,1.61959653,154.42,154.32,20.0]
[1723118285698,19.36,154.4,154.34,19.36]
[1723118285874,51.9975,154.38,154.31,14.61830634]
[1723118286074,51.9975,154.38,154.32,19.36]
[1723118286375,31.6488,154.36,154.31,31.36879757]
[1723118286761,12.2888,154.36,154.31,31.36879757]
[1723118287261,12.2888,154.36,154.33,19.36]
[1723118288486,12.2888,154.36,154.32,39.36]
[1723118288887,12.2888,154.36,154.33,19.36]
[1723118289266,12.2888,154.36,154.32,39.36]
[1723118290683,12.2888,154.36,154.32,20.0]
[1723118290884,31.6488,154.36,154.32,20.0]
[1723118291396,33.26872752,154.36,154.32,20.0]
[1723118291768,12.2888,154.36,154.32,39.36]
[1723118292403,12.2888,154.36,154.31,31.36879757]
[1723118292691,19.36,154.34,154.31,1.85963396]
[1723118295197,20.98023793,154.33,154.31,1.85963396]
[1723118295495,19.36,154.33,154.28,10.15366301]
[1723118296170,12.2888,154.36,154.28,10.15366301]
[1723118296405,12.2888,154.36,154.28,29.51366301]
[1723118296406,19.36,154.34,154.28,29.51366301]
[1723118297096,19.36,154.33,154.28,29.51366301]
[1723118297396,19.36,154.35,154.29,19.36]
[1723118298496,12.2888,154.36,154.31,19.36]
[1723118298668,12.2888,154.36,154.28,10.15366301]
[1723118298669,12.2888,154.36,154.32,19.36]
[1723118299899,32.6375,154.38,154.34,19.36]
[1723118300101,32.6375,154.38,154.35,19.36]
[1723118301112,32.6375,154.38,154.34,19.36]
[1723118301272,32.6375,154.38,154.35,19.36]
[1723118302295,32.6375,154.38,154.36,19.36]
[1723118302704,32.1877,154.42,154.37,19.36]
[1723118302877,32.1877,154.42,154.38,19.36]
[1723118303081,32.1877,154.42,154.39,19.36]
[1723118303385,33.1432,154.46,154.41,19.36]
[1723118304001,33.1432,154.46,154.43,19.36]
[1723118304208,33.1432,154.46,154.44,19.36]
[1723118304684,33.1432,154.46,154.43,19.36]
[1723118305601,52.5032,154.46,154.4,19.36]
[1723118305788,33.1432,154.46,154.41,20.0]
[1723118305999,33.1432,154.46,154.37,28.21]
[1723118306215,33.1432,154.46,154.38,20.0]
[1723118307897,33.1432,154.46,154.34,20.17]
[1723118307898,34.76233558,154.46,154.35,28.21]
[1723118308102,45.34,154.45,154.35,28.21]
[1723118308600,45.0,154.45,154.35,28.21]
[1723118308991,45.0,154.45,154.36,1.29532529]
[1723118309180,45.0,154.45,154.36,21.29532529]
[1723118310682,33.1432,154.46,154.37,28.21]
[1723118310881,33.1432,154.46,154.39,48.21]
[1723118311200,33.1432,154.46,154.4,20.0]
[1723118311500,33.1432,154.46,154.41,28.21]
[1723118311995,12.0176,154.47,154.43,28.21]
[1723118312204,30.2777,154.5,154.43,28.21]
[1723118312373,30.2777,154.5,154.43,48.21]
[1723118312573,30.2777,154.5,154.45,28.21]
[1723118313383,12.547,154.51,154.45,48.21]
[1723118314396,12.547,154.51,154.45,28.21]
[1723118315405,32.4742,154.54,154.47,28.21]
[1723118315607,12.4825,154.55,154.47,28.21]
[1723118315608,32.7966,154.58,154.52,28.21]
[1723118316193,32.7966,154.58,154.5,28.21]
[1723118316194,34.41420197,154.58,154.5,28.21]
[1723118316415,32.7966,154.58,154.51,20.0]
[1723118317104,34.41448955,154.58,154.51,20.0]
[1723118317307,34.41448955,154.58,154.49,20.0]
[1723118317480,32.7966,154.58,154.49,20.0]
[1723118318611,32.7966,154.58,154.52,28.21]
[1723118318906,44.318,154.65,154.56,28.21]
[1723118319215,1.61719543,154.64,154.54,28.21]
[1723118319514,29.82719543,154.64,154.55,20.0]
[1723118319695,29.82719543,154.64,154.53,20.0]
[1723118320109,45.34,154.63,154.53,20.0]
[1723118320406,46.95764172,154.63,154.53,20.0]
[1723118320604,45.34,154.63,154.53,20.0]
[1723118321012,46.95759855,154.63,154.53,20.0]
[1723118322104,45.34,154.63,154.54,28.21]
[1723118322293,45.0,154.62,154.55,20.0]
[1723118322497,1.61747111,154.62,154.55,20.0]
[1723118322690,1.61747111,154.62,154.52,28.21]
[1723118322895,1.61747111,154.62,154.53,20.0]
[1723118323403,0.34,154.61,154.53,20.0]
[1723118324310,0.34,154.62,154.53,20.0]
[1723118326318,0.34,154.63,154.53,20.0]
[1723118326491,0.34,154.63,154.54,28.21]
[1723118329516,1.61745231,154.62,154.54,28.21]
[1723118330389,1.78757685,154.63,154.54,28.21]
[1723118330590,0.17,154.62,154.54,28.21]
[1723118331012,1.6175117,154.62,154.54,2.00548813]
[1723118331190,0.34,154.61,154.54,2.00548813]
[1723118331388,32.6631,154.59,154.54,2.00548813]
[1723118331693,12.3795,154.57,154.54,2.00548813]
[1723118331901,12.3795,154.57,154.49,2.591529]
[1723118331902,30.16794257,154.56,154.49,2.591529]
[1723118332095,30.16794257,154.56,154.45,2.00665676]
[1723118332096,31.4315,154.54,154.45,2.00665676]
[1723118332297,45.0,154.53,154.45,2.00665676]
[1723118333394,1.61850027,154.52,154.45,2.00665676]
[1723118333710,1.61850134,154.51,154.45,2.00665676]
[1723118334412,46.61862962,154.53,154.45,2.00665676]
[1723118334603,0.34,154.52,154.45,22.00665676]
[1723118334804,0.17,154.52,154.45,22.00665676]
[1723118335407,31.4315,154.54,154.46,28.21]
[1723118335598,31.4315,154.54,154.48,28.21]
[1723118335796,31.4315,154.54,154.49,20.0]
[1723118339496,1.61803973,154.53,154.49,20.0]
[1723118339804,46.61803973,154.53,154.47,20.0]
[1723118340006,28.55,154.52,154.46,2.00652684]
[1723118340203,45.0,154.51,154.46,2.00652684]
[1723118340402,13.4718,154.5,154.46,2.00652684]
[1723118340714,45.0,154.49,154.46,2.00652684]
[1723118341091,0.34,154.48,154.46,2.00652684]
[1723118341295,0.34,154.48,154.38,34.9549953]
[1723118341296,30.2932,154.47,154.38,28.21]
[1723118341695,30.2932,154.47,154.4,28.21]
[1723118343014,13.1318,154.5,154.43,28.21]
[1723118343220,13.1318,154.5,154.44,20.0]
[1723118343803,31.4219,154.52,154.44,20.0]
[1723118344305,45.0,154.51,154.44,20.0]
[1723118344508,31.4219,154.52,154.45,28.21]
[1723118344708,31.4219,154.52,154.46,20.0]
[1723118345609,14.2260624,154.54,154.46,20.0]
[1723118345805,45.34,154.53,154.46,20.0]
[1723118346416,1.6185906,154.52,154.44,1.96635396]
[1723118346799,0.17,154.51,154.44,1.96635396]
[1723118346998,45.34,154.53,154.44,1.96635396]
[1723118347711,45.34,154.53,154.44,21.96635396]
[1723118348727,45.0,154.53,154.44,21.96635396]
[1723118348901,12.6077,154.54,154.47,28.21]
[1723118349106,12.6077,154.54,154.48,20.0]
[1723118352131,13.2246,154.58,154.49,49.49834805]
[1723118352303,31.1361,154.6,154.53,28.21]
[1723118352815,31.1361,154.6,154.51,3.25951161]
[1723118352816,31.1361,154.6,154.52,1.96533592]
[1723118353013,32.75399751,154.6,154.52,1.96533592]
[1723118353208,60.96399751,154.6,154.52,1.96533592]
[1723118353521,0.17,154.59,154.52,1.96533592]
[1723118353725,45.17,154.59,154.52,1.96533592]
[1723118354016,1.61802565,154.58,154.52,1.96533592]
[1723118354813,0.17,154.57,154.52,1.96533592]
[1723118355422,1.6180816,154.59,154.52,1.96533592]
[1723118355609,1.61785947,154.58,154.52,1.96533592]
[1723118355810,1.61809463,154.57,154.52,1.96533592]
[1723118356004,32.75419194,154.6,154.52,1.96533592]
[1723118356906,73.55,154.59,154.52,1.96533592]
[1723118357107,1.61814604,154.58,154.52,1.96533592]
[1723118357305,0.34,154.57,154.52,1.96533592]
[1723118357617,40.7545,154.55,154.43,40.2616]
[1723118357930,46.95850078,154.54,154.43,40.2616]
[1723118358230,46.95850078,154.54,154.44,1.96635396]
[1723118358636,59.9037,154.53,154.44,1.96635396]
[1723118358928,45.34,154.52,154.44,1.96635396]
[1723118359806,45.34,154.52,154.4,59.1592]
[1723118360007,45.34,154.52,154.41,20.0]
[1723118360614,1.61868376,154.51,154.41,20.0]
[1723118360815,0.17,154.5,154.4,6.75935452]
[1723118361132,45.34,154.5,154.39,28.21]
[1723118361316,1.61894152,154.49,154.39,28.21]
[1723118361515,1.61894165,154.48,154.39,28.21]
[1723118361723,32.3844,154.47,154.37,38.34860899]
[1723118362032,45.34,154.46,154.4,1.91243094]
[1723118362226,45.0,154.46,154.4,1.91243094]
[1723118362731,40.9306,154.45,154.37,10.13860899]
[1723118362916,40.9306,154.45,154.37,38.34860899]
[1723118362917,12.7206,154.45,154.37,38.34860899]
[1723118363313,12.7206,154.45,154.39,28.21]
[1723118364809,12.7206,154.45,154.38,1.87036693]
[1723118365115,12.7206,154.45,154.38,21.87036693]
[1723118365316,45.0,154.44,154.38,21.87036693]
[1723118365919,12.7206,154.45,154.38,21.87036693]
[1723118367232,1.61905603,154.44,154.38,21.87036693]
[1723118367423,46.61905603,154.44,154.38,21.87036693]
[1723118367804,45.0,154.44,154.38,1.87036693]
[1723118368222,46.61945177,154.44,154.38,1.87036693]
[1723118368529,45.0,154.44,154.38,1.87036693]
[1723118369324,46.61944805,154.44,154.38,1.87036693]
[1723118369543,45.0,154.44,154.38,1.87036693]
[1723118369918,0.17,154.43,154.38,1.87036693]
[1723118370124,1.95969166,154.43,154.38,1.87036693]
[1723118370815,0.34,154.43,154.38,1.87036693]
[1723118371217,45.0,154.44,154.38,1.87036693]
[1723118372035,0.34,154.43,154.38,1.87036693]
[1723118372236,45.0,154.44,154.38,1.87036693]
[1723118372940,0.17,154.43,154.38,1.87036693]
[1723118373140,1.95961329,154.43,154.38,1.87036693]
[1723118373641,30.16961329,154.43,154.38,1.87036693]
[1723118373825,45.0,154.42,154.31,28.21]
[1723118374150,0.34,154.41,154.33,10.14968385]
[1723118375219,0.34,154.41,154.34,20.0]
[1723118375542,0.34,154.41,154.33,10.14968385]
[1723118375744,0.34,154.41,154.34,20.0]
[1723118375745,32.4886,154.4,154.34,20.0]
[1723118375932,45.17,154.39,154.34,20.0]
[1723118376248,45.17,154.39,154.34,21.87546476]
[1723118376821,45.17,154.39,154.34,1.87546476]
[1723118376822,13.7389477,154.38,154.34,1.87546476]
[1723118377020,28.21,154.37,154.34,1.87546476]
[1723118377226,73.38,154.37,154.27,10.15332407]
[1723118377542,45.17,154.37,154.28,1.87619414]
[1723118377846,12.1191,154.38,154.29,28.21]
[1723118378733,12.1191,154.38,154.3,20.0]
[1723118379759,1.61997318,154.37,154.3,20.0]
[1723118379937,46.61997318,154.37,154.3,20.0]
[1723118380338,12.1191,154.38,154.3,20.0]
[1723118382548,45.34,154.37,154.3,20.0]
[1723118382744,12.1191,154.38,154.29,28.21]
[1723118382946,32.4886,154.4,154.3,20.0]
[1723118383123,45.0,154.39,154.31,28.21]
[1723118383326,45.0,154.39,154.32,20.0]
[1723118385844,1.96000783,154.38,154.32,20.0]
[1723118386054,0.34,154.38,154.29,28.21]
[1723118386256,0.34,154.38,154.3,20.0]
[1723118386466,0.34,154.38,154.3,21.02095075]
[1723118386755,0.34,154.38,154.3,20.0]
[1723118387754,12.5785,154.37,154.3,20.0]
[1723118387942,45.34,154.36,154.28,1.87619414]
[1723118388142,46.96052804,154.36,154.28,1.87619414]
[1723118388356,45.34,154.36,154.28,1.87619414]
[1723118388835,45.34,154.36,154.29,1.82730725]
[1723118389964,46.96038665,154.36,154.29,1.82730725]
[1723118392665,45.34,154.36,154.29,1.82730725]
[1723118393449,14.19897208,154.37,154.29,1.82730725]
[1723118393853,12.5785,154.37,154.29,1.82730725]
[1723118394740,45.34,154.36,154.29,1.82730725]
[1723118398651,12.5785,154.37,154.29,1.82730725]
[1723118399954,45.34,154.36,154.29,1.82730725]
[1723118400853,45.0,154.36,154.29,1.82730725]
[1723118401286,1.9603163,154.35,154.29,1.82730725]
[1723118402274,0.34,154.35,154.29,1.82730725]
[1723118402774,45.0,154.36,154.29,1.82730725]
[1723118403090,32.4886,154.4,154.3,28.21]
[1723118403292,32.4886,154.4,154.32,28.21]
[1723118403492,12.933,154.42,154.32,60.0942]
[1723118403652,31.6075,154.44,154.34,28.21]
[1723118403859,31.6075,154.44,154.35,20.0]
[1723118404389,1.61954281,154.43,154.35,20.0]
[1723118404681,31.6075,154.44,154.31,12.8473]
[1723118404682,29.82964931,154.42,154.31,12.8473]
[1723118404861,28.21,154.4,154.32,20.0]
[1723118405064,1.62004759,154.39,154.29,21.82730725]
[1723118405362,0.17,154.38,154.29,21.82730725]
[1723118405563,46.96015576,154.39,154.29,21.82730725]
[1723118405993,46.96015576,154.39,154.29,1.82730725]
[1723118405994,73.08638633,154.38,154.29,1.82730725]
[1723118406287,45.17,154.37,154.29,1.82730725]
[1723118406473,0.17,154.36,154.29,1.82730725]
[1723118406676,1.79040814,154.36,154.29,1.82730725]
[1723118406861,0.17,154.35,154.29,1.82730725]
[1723118407254,1.79047209,154.35,154.29,1.82730725]
[1723118407461,0.17,154.34,154.29,1.82730725]
[1723118408292,43.2561,154.38,154.29,1.82730725]
[1723118408485,45.34,154.37,154.29,1.82730725]
[1723118409607,1.62031496,154.36,154.29,1.82730725]
[1723118409805,0.34,154.35,154.29,1.82730725]
[1723118409973,0.17,154.34,154.29,1.82730725]
[1723118410174,0.17,154.35,154.29,1.82730725]
[1723118410495,0.17,154.36,154.29,1.82730725]
[1723118413094,1.62046331,154.35,154.29,1.82730725]
[1723118413406,0.34,154.34,154.29,1.82730725]
[1723118414190,45.0,154.35,154.29,1.82730725]
[1723118415108,43.2561,154.38,154.29,1.82730725]
[1723118415403,31.884,154.42,154.32,28.21]
[1723118415565,6.4737,154.47,154.34,28.21]
[1723118415566,31.884,154.46,154.34,28.21]
[1723118415764,33.5035467,154.46,154.35,20.0]
[1723118415970,6.4725,154.5,154.38,28.21]
[1723118415971,30.0187,154.5,154.38,28.21]
[1723118416277,30.0187,154.5,154.41,28.21]
[1723118416577,30.0187,154.5,154.42,20.0]
[1723118417176,30.0543,154.54,154.43,28.21]
[1723118417386,31.67286344,154.54,154.44,20.0]
[1723118418209,28.21,154.53,154.44,20.0]
[1723118418374,29.82872924,154.53,154.41,20.0]
[1723118418581,30.0543,154.54,154.43,28.21]
[1723118418914,301.4235,154.57,154.45,28.21]
[1723118419205,301.4235,154.57,154.44,20.0]
[1723118419206,12.5135,154.57,154.47,28.21]
[1723118419401,58.7456,154.59,154.48,20.0]
[1723118419605,28.21,154.57,154.48,20.0]
[1723118419815,32.15374159,154.59,154.48,20.0]
[1723118419816,28.21,154.55,154.48,20.0]
[1723118420097,1.61842966,154.54,154.44,20.0]
[1723118420604,0.17,154.53,154.44,20.0]
[1723118420793,28.21,154.57,154.45,28.21]
[1723118421114,29.8282674,154.57,154.46,20.0]
[1723118421292,58.7456,154.59,154.47,28.21]
[1723118421608,58.7456,154.59,154.48,20.0]
[1723118421773,60.36368965,154.59,154.48,20.0]
[1723118421981,28.21,154.56,154.48,20.0]
[1723118422302,29.82835501,154.58,154.46,20.0]
[1723118422693,1.78813266,154.57,154.46,20.0]
[1723118423094,0.17,154.57,154.47,28.21]
[1723118423297,0.17,154.58,154.48,20.0]
[1723118423508,29.99808708,154.58,154.48,20.0]
[1723118423816,28.21,154.56,154.48,20.0]
[1723118424108,45.17,154.55,154.46,21.77556593]
[1723118424283,1.61846417,154.54,154.46,21.77556593]
[1723118424483,0.17,154.53,154.46,21.77556593]
[1723118424673,28.21,154.58,154.47,29.50471152]
[1723118424873,41.209,154.62,154.49,28.21]
[1723118425091,21.61799073,154.61,154.5,20.0]
[1723118425398,29.82796792,154.6,154.5,20.0]
[1723118425902,28.21,154.58,154.48,21.82505979]
[1723118426105,28.21,154.58,154.43,2.51221906]
[1723118426106,28.21,154.54,154.44,1.82553248]
[1723118426286,46.95859077,154.53,154.44,1.82553248]
[1723118427200,45.34,154.53,154.44,1.82553248]
[1723118427407,45.34,154.53,154.44,21.82553248]
[1723118429418,28.21,154.58,154.45,28.21]
[1723118429585,28.21,154.58,154.46,20.0]
[1723118429786,45.0,154.57,154.47,28.21]
[1723118429987,28.21,154.6,154.47,28.21]
[1723118430207,28.21,154.6,154.48,20.0]
[1723118430411,1.61811648,154.59,154.48,20.0]
[1723118430609,1.61811571,154.6,154.5,12.516]
[1723118430825,41.209,154.62,154.51,48.21]
[1723118431115,260.7,154.63,154.53,28.21]
[1723118431294,1.61763316,154.62,154.54,20.0]
[1723118431694,1.61763316,154.62,154.5,12.516]
[1723118431917,6.4679,154.61,154.51,20.0]
[1723118432129,8.08645803,154.6,154.46,45.2309]
[1723118432285,0.17,154.59,154.46,45.2309]
[1723118432489,1.61804976,154.62,154.46,65.2309]
[1723118432689,1.61804976,154.62,154.46,122.7450296]
[1723118432914,1.61804976,154.62,154.46,122.7449913]
[1723118433227,1.61804976,154.62,154.46,121.4509]
[1723118433390,1.61804976,154.62,154.47,65.34]
[1723118433930,0.17,154.61,154.47,65.34]
[1723118434092,1.7878312,154.61,154.47,65.34]
[1723118434786,1.7878312,154.61,154.47,20.0]
[1723118435011,0.17,154.6,154.47,20.0]
[1723118435214,1.7881084,154.6,154.47,20.0]
[1723118435418,0.17,154.59,154.47,20.0]
[1723118435620,1.61811123,154.58,154.47,20.0]
[1723118435918,0.17,154.6,154.47,20.0]
[1723118435919,0.17,154.57,154.47,20.0]
[1723118436124,1.78788676,154.6,154.47,20.0]
[1723118436337,0.17,154.59,154.47,20.0]
[1723118436622,1.61807539,154.58,154.47,20.0]
[1723118436824,1.95807364,154.57,154.47,20.0]
[1723118437021,0.17,154.56,154.47,20.0]
[1723118437526,0.17,154.56,154.46,12.5515]
[1723118437527,1.78831982,154.56,154.46,12.5515]
[1723118437728,0.17,154.55,154.44,1.82553248]
[1723118437918,1.61864899,154.54,154.44,1.82553248]
[1723118438230,0.34,154.53,154.44,1.82553248]
[1723118438530,1.6186482,154.52,154.44,1.82553248]
[1723118438724,0.34,154.51,154.44,1.82553248]
[1723118439735,1.95874879,154.51,154.44,1.82553248]
[1723118440228,1.95874879,154.51,154.38,12.4866]
[1723118440823,0.34,154.51,154.38,32.4866]
[1723118441026,0.34,154.51,154.4,20.0]
[1723118441227,45.0,154.52,154.4,56.22]
[1723118441604,45.0,154.52,154.41,21.82588716]
[1723118441804,31.1497,154.55,154.42,1.82576892]
[1723118442004,12.5483,154.57,154.43,41.63455157]
[1723118442220,292.5758,154.6,154.46,45.2089]
[1723118442426,1.61817323,154.56,154.47,20.0]
[1723118442806,1.61834356,154.59,154.47,20.0]
[1723118443204,292.5758,154.6,154.47,20.0]
[1723118443405,1.78803749,154.59,154.47,20.0]
[1723118443712,6.6392,154.58,154.47,20.0]
[1723118443909,46.61838071,154.57,154.47,20.0]
[1723118444133,0.17,154.56,154.47,20.0]
[1723118444607,1.61836841,154.55,154.47,20.0]
[1723118444807,1.61836841,154.55,154.44,1.82553248]
[1723118444808,0.34,154.54,154.44,1.82553248]
[1723118445018,1.6186639,154.53,154.44,1.82553248]
[1723118445225,0.34,154.52,154.44,1.82553248]
[1723118445616,1.6186946,154.51,154.44,1.82553248]
[1723118445935,0.34,154.5,154.44,1.82553248]
[1723118446161,1.61908169,154.49,154.41,13.2561]
[1723118446435,1.95909173,154.48,154.38,32.4426]
[1723118446636,1.78909173,154.48,154.38,32.4426]
[1723118446840,0.17,154.47,154.38,32.4426]
[1723118447617,1.61912165,154.46,154.37,20.0167729]
[1723118447820,0.34,154.45,154.37,13.2717]
[1723118448013,1.95946758,154.45,154.37,13.2717]
[1723118448238,0.34,154.45,154.37,13.2717]
[1723118448545,1.61948844,154.49,154.37,13.2717]
[1723118448717,0.34,154.48,154.37,13.2717]
[1723118448918,0.17,154.47,154.38,1.82624197]
[1723118449119,0.17,154.48,154.38,1.82624197]
[1723118449429,0.17,154.48,154.38,21.82624197]
[1723118449620,0.17,154.48,154.39,1.82612369]
[1723118450439,1.7892269,154.48,154.39,1.82612369]
[1723118450638,0.17,154.47,154.39,1.82612369]
[1723118450842,0.17,154.48,154.39,1.82612369]
[1723118451013,1.78928165,154.48,154.39,1.82612369]
[1723118451346,0.17,154.47,154.39,1.82612369]
[1723118451538,1.61942472,154.46,154.39,1.82612369]
[1723118451742,1.95947293,154.45,154.39,1.82612369]
[1723118451915,0.17,154.44,154.39,1.82612369]